Cogmind - Beta 15 @@@ ROGUE MODE // 2025.08.30 @ 19:24:48 Player: swetpototo Result: Destroyed by B-90 Cyclops with Nova Cannon Performance ------------- Evolutions (8) 4000 Regions Visited (18) 3600 Robots Destroyed (73) 365 Value Destroyed (2857) 2857 Prototype IDs (7) 140 Alien Tech Used (0) 0 Bonus (1000) 1000 TOTAL SCORE: 11962 Bonus ------- Entered DSFs 1000 Cogmind --------- Core Integrity 0/1450 Matter 76/300 Energy 100/100 System Corruption 9% Temperature Cool (9) Movement Core (50) Location -2/Research Parts ------- > --- POWER (2) -------- (None) > --- PROPULSION (8) --- (None) > --- UTILITY (9) ------ Advanced Signal Interpreter Hacking Suite > --- WEAPON (4) ------- (None) > --- INVENTORY (5) ---- Advanced Phase Shifter Drone Bay (2/2) Compact HERF Cannon Makeshift Spear Peak State ------------ > --- POWER ------------ Quantum Reactor > --- PROPULSION ------- Improved Heavy Treads Biometal Leg Centrium Leg Centrium Leg High-density Centrium Wheel > --- UTILITY ---------- Experimental Energy Well Advanced Sensor Array Advanced Signal Interpreter Advanced Terrain Scan Processor Layered Light Armor Plating Advanced Force Field Hacking Suite System Shield > --- WEAPON ----------- Quantum Rifle Compact HERF Cannon Nova Cannon Enhanced Gauss Cannon > --- INVENTORY -------- Drone Bay Advanced Micro-nuke Launcher Dirty Datajack Makeshift Spear [Rating: 131] Favorites ----------- Power Cooled Ion Engine Engine Cooled Ion Engine Power Core Micro Nuclear Core Reactor Quantum Reactor Propulsion Compact Wheel Treads Light Treads Leg Centrium Leg Wheel Compact Wheel Hover Unit Improved Gyrokinetic Inverter Flight Unit VTOL Module Utility Huge Storage Unit Device Cooling System Storage Huge Storage Unit Processor Advanced Signal Interpreter Hackware Hacking Suite Protection Layered Light Armor Plating Weapon Particle Cannon Energy Gun Heavy EM Shotgun Energy Cannon Particle Cannon Ballistic Gun High-powered Shotgun Ballistic Cannon Mass Driver Launcher Grenade Launcher Special Weapon Remote Datajack Piercing Weapon Makeshift Spear Special Melee Weapon Dirty Datajack Build | -11 -10 -9 -9 -8 -7 -7 -7 -7 -7 -6 -6 -5 -5 -5 -4 -4 -3 -2 ------- Run | Yrd Mat Mat Min Mat Fac Was Fac Low Low Fac DSF Fac Upp Upp Fac DSF Res Res Slots Evolved 16 | . . 2 . 2 2 . . . . 2 . 2 . . 2 . 2 2 Power 1 | . . . . 1 . . . . . . . . . . . . . . Propulsion 6 | . . . . . 2 . . . . . . . . . . . 2 2 Utility 7 | . . . . 1 . . . . . 2 . 2 . . 2 . . . Weapon 2 | . . 2 . . . . . . . . . . . . . . . . Parts Attached 101 | . 5 3 2 20 8 1 1 1 1 2 5 4 6 . . 7 20 15 Power 10 | . . . . 4 1 . . . . . . . . . . . 1 4 Engine 4 | . . . . 4 . . . . . . . . . . . . . . Core 1 | . . . . . 1 . . . . . . . . . . . . . Reactor 5 | . . . . . . . . . . . . . . . . . 1 4 Propulsion 33 | . 2 . . 3 4 . . . . 1 4 1 2 . . 7 7 2 Treads 6 | . . . . 2 . . . . . . 2 . . . . . 2 . Leg 9 | . . . . 1 4 . . . . . . . . . . . 4 . Wheel 9 | . 2 . . . . . . . . . . 1 . . . 5 . 1 Hover 5 | . . . . . . . . . . 1 . . . . . 2 1 1 Flight 4 | . . . . . . . . . . . 2 . 2 . . . . . Utility 26 | . 2 1 . 5 . . 1 1 1 . . 1 2 . . . 7 5 Device 16 | . 1 1 . 3 . . 1 1 1 . . 1 1 . . . 2 4 Storage 3 | . 1 . . 1 . . . . . . . . . . . . 1 . Processor 3 | . . . . . . . . . . . . . 1 . . . 1 1 Hackware 2 | . . . . . . . . . . . . . . . . . 2 . Protection 2 | . . . . 1 . . . . . . . . . . . . 1 . Artifact . | . . . . . . . . . . . . . . . . . . . Weapon 32 | . 1 2 2 8 3 1 . . . 1 1 2 2 . . . 5 4 Energy Gun 5 | . . 1 1 1 1 . . . . . . . . . . . 1 . Energy Cannon 14 | . 1 1 1 3 2 1 . . . . 1 . 1 . . . 1 2 Ballistic Gun 1 | . . . . 1 . . . . . . . . . . . . . . Ballistic Cannon 4 | . . . . . . . . . . . . 2 . . . . . 2 Launcher 5 | . . . . 3 . . . . . . . . 1 . . . 1 . Special Weapon 1 | . . . . . . . . . . 1 . . . . . . . . Impact Weapon . | . . . . . . . . . . . . . . . . . . . Slashing Weapon . | . . . . . . . . . . . . . . . . . . . Piercing Weapon 1 | . . . . . . . . . . . . . . . . . 1 . Special Melee Weapon 1 | . . . . . . . . . . . . . . . . . 1 . Unidentified Prototypes 7 | . . . . 2 1 1 . . . . . . . . . . 2 1 Parts Lost 56 | . 2 . . 9 . 6 . . 1 . 5 . 6 . . 1 3 23 Power 8 | . . . . 2 . 2 . . . . . . . . . . 1 3 Propulsion 17 | . . . . 1 . 3 . . 1 . 2 . 3 . . 1 1 5 Utility 17 | . 1 . . 2 . . . . . . 2 . 2 . . . 1 9 Weapon 14 | . 1 . . 4 . 1 . . . . 1 . 1 . . . . 6 Highest Loss Streak 10 | . 2 . . 5 . 6 . . 1 . 3 . 5 . . 1 3 10 To Critical Strikes . | . . . . . . . . . . . . . . . . . . . Average Backups 11 | . 9 10 15 24 24 18 4 4 5 5 5 4 4 5 5 5 4 4 Power . | . 1 2 2 1 1 1 . . . 1 1 1 1 . . . . . Propulsion 3 | . 4 4 5 10 8 6 1 1 1 1 1 . . . . . . . Utility 2 | . 2 3 4 4 6 4 1 1 . . . . . 1 1 1 1 1 Weapon 3 | . 1 1 3 7 8 6 1 2 3 3 2 2 2 1 3 3 2 1 Tool/Special . | . . . . . . . . . . . . . . . . . . . Unused Backups 21 | . . . . 6 . 11 . 1 . . . . 1 . . . 1 1 Power 2 | . . . . 1 . 1 . . . . . . . . . . . . Propulsion 7 | . . . . 4 . 3 . . . . . . . . . . . . Utility 5 | . . . . . . 3 . 1 . . . . . . . . . 1 Weapon 7 | . . . . 1 . 4 . . . . . . 1 . . . 1 . Tool/Special . | . . . . . . . . . . . . . . . . . . . Average Slot Usage (%) 58 | . 87 93 99 87 97 81 14 31 19 19 16 10 20 . . 1 39 52 Engine 6 | . 14 11 11 13 8 5 1 7 2 . . . . . . . . . Treads 3 | . . . . 12 . . 2 7 1 . 1 . . . . . 2 1 Leg 4 | . 3 . . 2 29 24 . . . . . . . . . . 9 8 Wheel 5 | . 24 22 22 3 . . . . . . . 3 3 . . . . 2 Device 6 | . 5 8 11 6 7 5 2 13 15 13 4 . 5 . . . 2 4 Storage 7 | . 14 11 11 17 15 11 . . . . . . . . . . 2 2 Hackware 1 | . . . . . . . . . . . . . . . . . 8 7 Energy Gun 3 | . 9 8 11 5 3 5 . . . . . . . . . . 1 . Energy Cannon 10 | . 1 19 31 17 20 19 7 2 . . 1 . . . . . 1 4 Ballistic Gun 1 | . 14 11 . 3 . . . . . . . . . . . . . . Ballistic Cannon 1 | . . . . . . . . . . . . 6 8 . . . . . Launcher 1 | . . . . 4 3 . . . . . . . . . . . . 1 Peak Build Rating 131 | . 8 12 15 28 46 46 16 22 18 19 24 19 25 2 2 34 96 131 Average Rating 28 | . 6 11 13 20 42 35 10 16 11 14 12 9 17 1 2 9 55 84 On Entrance 15 | 6 6 7 12 15 21 46 8 16 15 10 19 1 19 2 2 2 2 93 Naked Turns 130 | . . . . . . 8 . . . . 13 4 35 22 2 37 9 . Heaviest Build 118 | 11 87 95 99 114 118 117 20 24 13 5 11 24 25 . . . 36 76 Greatest Support 75 | 20 32 32 32 49 72 72 20 20 20 10 30 10 10 3 3 52 75 75 Greatest Overweight (x) 5 | . 2 2 3 5 1 3 3 1 4 1 3 2 3 . . . . 3 Average Overweight (x) 1 | . 1 2 2 2 1 . 1 . . . . . 1 . . . . . Largest Inventory Capacity 25 | . 25 25 25 25 25 25 5 5 5 5 5 5 5 5 5 5 5 5 Average Capacity 14 | . 23 25 25 25 25 18 5 5 5 5 5 5 5 5 5 5 5 5 Most Carried 25 | . 11 11 19 25 25 25 5 5 5 5 5 5 5 5 5 5 5 5 Average Carried 11 | . 9 10 15 24 24 18 4 4 4 5 5 4 4 4 5 5 4 4 Final Capacity 25 | 8 25 25 25 25 25 5 5 5 5 5 5 5 5 5 5 5 5 5 Final Carried 25 | 6 11 11 19 25 25 5 3 5 5 5 5 5 5 5 5 5 5 4 Class Distribution -------------------- 43% | Mutant 36% | Gunner 17% | Hacker-Mutant Dominant Class ---------------- Mutant | -10/Materials Gunner | -9/Materials Gunner | -9/Mines Gunner | -8/Materials Gunner | -7/Factory Gunner | -7/Waste Mutant | -7/Factory Mutant | -7/Lower Caves Mutant | -7/Lower Caves Mutant | -6/Factory Mutant | -6/DSF Mutant | -5/Factory Mutant | -5/Upper Caves Mutant | -5/Upper Caves Mutant | -4/Factory Mutant | -4/DSF Hacker-Mutant | -3/Research Hacker-Mutant | -2/Research Resources | -11 -10 -9 -9 -8 -7 -7 -7 -7 -7 -6 -6 -5 -5 -5 -4 -4 -3 -2 ----------- Run | Yrd Mat Mat Min Mat Fac Was Fac Low Low Fac DSF Fac Upp Upp Fac DSF Res Res Matter Collected 1551 | 174 81 . 246 371 . . . 21 107 19 1 . 125 . . . 144 262 Remotely 73 | . . . . 10 . . . . . . . . 63 . . . . . Salvage Created 2527 | . 101 . 451 1042 . . . . 55 . 25 . 47 . . . 362 444 Parts 140 | . 10 . 17 66 . . . . . . 3 . 9 . . . 12 23 Haulers Intercepted 2 | . . . . 2 . . . . . . . . . . . . . . Recyclers Shooed 1 | . . . . . . . . . . . . . . . . . . 1 Parts Field Recycled . | . . . . . . . . . . . . . . . . . . . Retrieved Matter . | . . . . . . . . . . . . . . . . . . . Parts Self-Destructed 10 | . . . . . . . . . . . . . 10 . . . . . Prevented . | . . . . . . . . . . . . . . . . . . . Kills | -11 -10 -9 -9 -8 -7 -7 -7 -7 -7 -6 -6 -5 -5 -5 -4 -4 -3 -2 ------- Run | Yrd Mat Mat Min Mat Fac Was Fac Low Low Fac DSF Fac Upp Upp Fac DSF Res Res Combat Hostiles Destroyed 60 | . 4 . 7 22 . . . . . . 1 . 5 . . . 11 10 Melee 7 | . . . . . . . . . . . . . . . . . 4 3 Guns 11 | . 4 . . 7 . . . . . . . . . . . . . . Cannons 11 | . . . 6 2 . . . . . . 1 . 2 . . . . . AOE 29 | . . . . 13 . . . . . . . . 3 . . . 7 6 Classes Destroyed 15 | . 2 . 5 3 . . . . 1 . 1 . . . . . 2 1 Worker 4 | . . . 1 3 . . . . . . . . . . . . . . Builder 5 | . . . . 5 . . . . . . . . . . . . . . Tunneler 1 | . . . 1 . . . . . . . . . . . . . . . Hauler 2 | . . . . 2 . . . . . . . . . . . . . . Recycler 1 | . . . 1 . . . . . . . . . . . . . . . Swarmer 19 | . 3 . . 4 . . . . . . . . 5 . . . 3 4 Cutter 1 | . . . . . . . . . . . 1 . . . . . . . Grunt 26 | . 1 . 5 16 . . . . . . . . . . . . 4 . Brawler 2 | . . . 1 1 . . . . . . . . . . . . . . Duelist 1 | . . . 1 . . . . . . . . . . . . . . . Sentry 1 | . . . . 1 . . . . . . . . . . . . . . Specialist 2 | . . . . . . . . . . . . . . . . . . 2 Hunter 4 | . . . . . . . . . . . . . . . . . 2 2 Programmer 4 | . . . . . . . . . . . . . . . . . 2 2 Samaritan 1 | . . . . . . . . . 1 . . . . . . . . . Best Kill Streak 12 | . 3 . 3 12 . . . . . . 1 . 5 . . . 7 4 Combat Bots Only 8 | . 3 . 3 8 . . . . . . 1 . 5 . . . 7 4 Max Kills in Single Turn 3 | . 1 . 2 2 . . . . 1 . 1 . 2 . . . 3 3 Gunslinging 1 | . . . . 1 . . . . . . . . . . . . . . Exploded 3 | . . . . 2 . . . . . . . . 2 . . . 3 3 Melee 1 | . . . . . . . . . . . . . . . . . 1 1 Uniques/NPCs Destroyed . | . . . . . . . . . . . . . . . . . . . Combat | -11 -10 -9 -9 -8 -7 -7 -7 -7 -7 -6 -6 -5 -5 -5 -4 -4 -3 -2 -------- Run | Yrd Mat Mat Min Mat Fac Was Fac Low Low Fac DSF Fac Upp Upp Fac DSF Res Res Hostile Shots Fired 819 | . 31 . 25 117 . 5 . . 15 . 59 . 89 . . 47 144 287 Missed 266 | . 8 . 6 34 . . . . 4 . 23 . 34 . . 10 49 98 Hits 553 | . 23 . 19 83 . 5 . . 11 . 36 . 55 . . 37 95 189 Melee 52 | . . . . 4 . 5 . . 1 . 13 . 1 . . 28 . . Projectile 501 | . 23 . 19 79 . . . . 10 . 23 . 54 . . 9 95 189 AOE 3 | . . . . . . . . . . . . . . . . 3 . . Critical Strikes 37 | . . . . 4 . 3 . . 1 . 3 . 4 . . 11 5 6 Part Disruptions 1 | . . . . . . . . . . . . . . . . . 1 . Damage Taken 11559 | . 209 . 245 1510 . 240 . . 182 . 817 . 1037 . . 1235 1798 4286 Core 3944 | . 72 . 24 153 . 105 . . 119 . 528 . 424 . . 881 178 1460 Absorbed by Shields 231 | . . . . . . . . . . . 75 . . . . 16 . 140 Ignored by Resistances 21 | . . . . . . . . . 21 . . . . . . . . . Core Remaining (%) 67 | 100 71 . 94 72 . . . . 68 . 37 . . 57 . 23 86 . Volleys Fired 129 | . 16 . 14 53 . . . . . . 7 . 6 . . . 7 26 Largest 4 | . 2 . 4 4 . . . . . . 1 . 1 . . . 1 3 Hottest 301 | . 60 . 261 272 . . . . . . 105 . 90 . . . 30 301 Shots Fired 237 | . 28 . 54 103 . . . . . . 7 . 6 . . . 7 32 Gun 91 | . 28 . 12 48 . . . . . . . . . . . . . 3 Cannon 111 | . . . 42 38 . . . . . . 7 . 4 . . . . 20 Launcher 35 | . . . . 17 . . . . . . . . 2 . . . 7 9 Special . | . . . . . . . . . . . . . . . . . . . Kinetic 36 | . 16 . . 17 . . . . . . . . . . . . . 3 Thermal 123 | . . . 54 40 . . . . . . 7 . 4 . . . . 18 Explosive 27 | . . . . 9 . . . . . . . . 2 . . . 7 9 Electromagnetic 51 | . 12 . . 37 . . . . . . . . . . . . . 2 Robot Hit Streak 12 | . 4 . 8 12 . . . . . . 1 . 2 . . . 6 10 Robot Miss Streak 8 | . 6 . 3 4 . . . . . . 6 . 3 . . . 1 8 Penetration Max . | . . . . . . . . . . . . . . . . . . . Secondary Targets 2 | . 1 . . 1 . . . . . . . . . . . . . . Max Gunslinging Chain 1 | . 1 . . 1 . . . . . . . . . . . . . . Shots Hit Robots 178 | . 14 . 30 68 . . . . . . 1 . 3 . . . 21 41 Core Hits 137 | . 8 . 15 60 . . . . . . 1 . 5 . . . 23 25 Critical Kills . | . . . . . . . . . . . . . . . . . . . Critical Parts Destroyed . | . . . . . . . . . . . . . . . . . . . Critical Strikes 7 | . 1 . 2 . . . . . . . . . . . . . 2 2 Burn 2 | . . . 2 . . . . . . . . . . . . . . . Corrupt 1 | . 1 . . . . . . . . . . . . . . . . . Impale 4 | . . . . . . . . . . . . . . . . . 2 2 Melee Attacks 56 | . . . . . . . . . . . . . . . . . 28 28 Impact . | . . . . . . . . . . . . . . . . . . . Slashing . | . . . . . . . . . . . . . . . . . . . Piercing 56 | . . . . . . . . . . . . . . . . . 28 28 Sneak Attacks . | . . . . . . . . . . . . . . . . . . . Combat Hostiles . | . . . . . . . . . . . . . . . . . . . Follow-up Attacks . | . . . . . . . . . . . . . . . . . . . Damage Inflicted 8037 | . 157 . 616 2611 . . . . 6 . 41 . 438 . . 3 2031 2134 Guns 1069 | . 157 . 93 762 . . . . . . . . . . . . . 57 Cannons 1413 | . . . 480 442 . . . . . . 33 . 65 . . . . 393 Explosions 4587 | . . . . 1357 . . . . . . . . 373 . . . 1624 1233 Melee 801 | . . . . . . . . . . . . . . . . . 407 394 Ramming 167 | . . . 43 50 . . . . 6 . 8 . . . . 3 . 57 Kinetic 421 | . 81 . . 261 . . . . . . . . . . . . . 79 Thermal 1667 | . . . 573 666 . . . . . . 33 . 65 . . . . 330 Explosive 4135 | . . . . 905 . . . . . . . . 373 . . . 1624 1233 Electromagnetic 846 | . 76 . . 729 . . . . . . . . . . . . . 41 Impact . | . . . . . . . . . . . . . . . . . . . Slashing . | . . . . . . . . . . . . . . . . . . . Piercing 801 | . . . . . . . . . . . . . . . . . 407 394 Highest Corruption 9 | . . . . 1 . . . . . . . . 2 2 . . 5 9 Average Corruption 2 | . . . . 1 . . . . . . . . 1 2 . . 3 4 Corruption Purged . | . . . . . . . . . . . . . . . . . . . Corruption Blocked . | . . . . . . . . . . . . . . . . . . . Effects 12 | . . . . 5 . . . . . . . . . . . . 1 6 Message Errors 2 | . . . . 2 . . . . . . . . . . . . . . Matter Fused 4 | . . . . 2 . . . . . . . . . . . . . 2 Energy Discharges 1 | . . . . . . . . . . . . . . . . . . 1 Parts Rejected 1 | . . . . . . . . . . . . . . . . . . 1 Parts Fused 1 | . . . . . . . . . . . . . . . . . . 1 Data Loss (minor) 1 | . . . . 1 . . . . . . . . . . . . . . Data Loss (major) 1 | . . . . . . . . . . . . . . . . . 1 . Misfires 1 | . . . . . . . . . . . . . . . . . . 1 Overload Shots . | . . . . . . . . . . . . . . . . . . . Overflow Damage 170 | . . . . 60 . . . . . . . . 44 . . . 44 22 Projectiles 28 | . . . . . . . . . . . . . 28 . . . . . Explosions 108 | . . . . 55 . . . . . . . . 16 . . . 21 16 Melee 34 | . . . . 5 . . . . . . . . . . . . 23 6 Knockbacks 1 | . . . . 1 . . . . . . . . . . . . . . Impact 1 | . . . . 1 . . . . . . . . . . . . . . Kinetic . | . . . . . . . . . . . . . . . . . . . Secondary . | . . . . . . . . . . . . . . . . . . . Self-Inflicted Damage 481 | . . . 20 309 . . . . 3 . 4 . . . . 1 . 144 Shots 16 | . . . . 11 . . . . . . . . . . . . . 5 Rammed 22 | . . . 3 4 . . . . 1 . 2 . . . . 4 . 8 Targets Rammed 22 | . . . 3 4 . . . . 1 . 2 . . . . 4 . 8 Kicked . | . . . . . . . . . . . . . . . . . . . Crushed . | . . . . . . . . . . . . . . . . . . . Highest Temperature 416 | . 76 . 339 416 . . . . . . . . 40 . . . . 409 Average Temperature 146 | . 27 . 128 166 . . . . . . . . 22 . . . . 195 Received Heat Transfer 1320 | . 36 . 126 603 . . . . 81 . . . 243 . . . 114 117 Effects 7 | . . . 3 3 . . . . . . . . . . . . . 1 Shutdowns 1 | . . . . . . . . . . . . . . . . . . 1 Energy Bleed 2 | . . . . 2 . . . . . . . . . . . . . . Interference 3 | . . . 2 1 . . . . . . . . . . . . . . Damage (minor) 1 | . . . 1 . . . . . . . . . . . . . . . Siege Activations . | . . . . . . . . . . . . . . . . . . . Martial Activations . | . . . . . . . . . . . . . . . . . . . Shielding Activations . | . . . . . . . . . . . . . . . . . . . Robots Disrupted . | . . . . . . . . . . . . . . . . . . . Combat Hostiles . | . . . . . . . . . . . . . . . . . . . Robots Corrupted 3 | . . . . 1 . . . . 1 . . . . . . . . 1 Combat Hostiles 1 | . . . . . . . . . . . . . . . . . . 1 Parts Fried 4 | . . . . 2 . . . . 2 . . . . . . . . . Impact Corruptions 3 | . . . . 1 . . . . 1 . . . . . . . . 1 Robots Melted 1 | . . . 1 . . . . . . . . . . . . . . . Combat Hostiles 1 | . . . 1 . . . . . . . . . . . . . . . Parts Melted 7 | . . . 3 4 . . . . . . . . . . . . . . Heat Transferred 2916 | . . . 1332 1101 . . . . . . 50 . 100 . . . . 333 Parts Sabotaged . | . . . . . . . . . . . . . . . . . . . Parts Stolen . | . . . . . . . . . . . . . . . . . . . Parts Stripped . | . . . . . . . . . . . . . . . . . . . Power Chain Reactions 3 | . . . . 3 . . . . . . . . . . . . . . Alert | -11 -10 -9 -9 -8 -7 -7 -7 -7 -7 -6 -6 -5 -5 -5 -4 -4 -3 -2 ------- Run | Yrd Mat Mat Min Mat Fac Was Fac Low Low Fac DSF Fac Upp Upp Fac DSF Res Res Maximum Alert Level 1 | . . . . 1 . . . . . . . . . . . . 1 1 Low Security (%) 76 | . 100 100 100 26 100 100 100 . . 100 100 100 . . 100 100 89 88 Level 1 23 | . . . . 73 . . . . . . . . . . . . 10 11 Level 2 . | . . . . . . . . . . . . . . . . . . . Level 3 . | . . . . . . . . . . . . . . . . . . . Level 4 . | . . . . . . . . . . . . . . . . . . . Level 5 . | . . . . . . . . . . . . . . . . . . . High Security . | . . . . . . . . . . . . . . . . . . . Max Security . | . . . . . . . . . . . . . . . . . . . Peak Influence 332 | . 75 14 135 332 123 11 . . . . 29 4 . . 118 106 269 224 Initial 141 | . . 14 . 18 123 11 . . . . 3 4 . . 118 86 59 141 Average 93 | . 20 3 53 207 81 2 . . . . 9 . . . 118 91 59 91 Influence Increases 2477 | . 115 . 215 767 . . . . . 5 39 . 380 . 5 30 463 458 Destroy 0b10 Robot/C 1200 | . 80 . 140 440 . . . . . . 20 . 100 . . . 220 200 Destroy 0b10 Robot/NC 70 | . . . 15 50 . . . . . . . . . . . . . 5 Destroy Leader 226 | . 20 . 30 84 . . . . . . . . 10 . . . 40 42 Allied During Kill 1 | . . . . . . . . . . . . . . . . . . 1 Successful Hack 19 | . . . . . . . . . . 5 . . . . 5 . 9 . Disable Machine 90 | . . . 30 30 . . . . . . . . . . . . 15 15 Destroy Structure 316 | . . . . 58 . . . . . . 4 . . . . . 74 180 Lose Combat Pursuer 555 | . 15 . . 105 . . . . . . 15 . 270 . . 30 105 15 Influence Decreases 2343 | . 80 35 166 544 239 33 . . . . 35 9 135 57 70 47 316 577 Entered New Map 543 | . . 21 . 31 149 22 . . . . 2 5 . 47 70 37 47 112 Time Decay 1328 | . 60 14 166 423 90 11 . . . . . 4 75 10 . . 239 236 Lost Part 472 | . 20 . . 90 . . . . . . 33 . 60 . . 10 30 229 Squads Dispatched 20 | . 1 1 . 5 . . 1 . . 1 2 . . . . 1 3 5 Investigation 8 | . . 1 . 3 . . . . . 1 . . . . . . 2 1 Extermination 2 | . . . . . . . . . . . . . . . . . 1 1 Reinforcement 10 | . 1 . . 2 . . 1 . . . 2 . . . . 1 . 3 Assault . | . . . . . . . . . . . . . . . . . . . Garrison . | . . . . . . . . . . . . . . . . . . . Intercept . | . . . . . . . . . . . . . . . . . . . Searches Triggered . | . . . . . . . . . . . . . . . . . . . Construction Impeded 2 | . . . . 1 . . . . . . . . . . . . . 1 Haulers Reinforced . | . . . . . . . . . . . . . . . . . . . Active Scanning Responses . | . . . . . . . . . . . . . . . . . . . Cargo Convoy Interrupts . | . . . . . . . . . . . . . . . . . . . Stealth | -11 -10 -9 -9 -8 -7 -7 -7 -7 -7 -6 -6 -5 -5 -5 -4 -4 -3 -2 --------- Run | Yrd Mat Mat Min Mat Fac Was Fac Low Low Fac DSF Fac Upp Upp Fac DSF Res Res Distress Signals 12 | . 1 2 . 5 . . . . . . . . . . . . 2 2 Communications Jammed . | . . . . . . . . . . . . . . . . . . . Distress Signals . | . . . . . . . . . . . . . . . . . . . Times Spotted 149 | . 10 2 7 40 . 6 1 . 5 . 7 1 26 . . 5 18 21 Peak Tracking Total 11 | . 5 4 3 8 . 6 1 . 5 . 4 1 11 . . 4 8 7 Tactical Retreats 16 | . 1 . . 3 . . . . . . 1 . 6 . . 2 2 1 Traps | -11 -10 -9 -9 -8 -7 -7 -7 -7 -7 -6 -6 -5 -5 -5 -4 -4 -3 -2 ------- Run | Yrd Mat Mat Min Mat Fac Was Fac Low Low Fac DSF Fac Upp Upp Fac DSF Res Res Traps Triggered 9 | . . . . . 1 . . . . . 4 1 . . . 1 1 1 Indirectly . | . . . . . . . . . . . . . . . . . . . Trap Hack Attempts . | . . . . . . . . . . . . . . . . . . . Triggered . | . . . . . . . . . . . . . . . . . . . Disarmed . | . . . . . . . . . . . . . . . . . . . Reprogrammed . | . . . . . . . . . . . . . . . . . . . Reused . | . . . . . . . . . . . . . . . . . . . Traps Extracted . | . . . . . . . . . . . . . . . . . . . Installed . | . . . . . . . . . . . . . . . . . . . Triggered . | . . . . . . . . . . . . . . . . . . . Machines | -11 -10 -9 -9 -8 -7 -7 -7 -7 -7 -6 -6 -5 -5 -5 -4 -4 -3 -2 ---------- Run | Yrd Mat Mat Min Mat Fac Was Fac Low Low Fac DSF Fac Upp Upp Fac DSF Res Res Machines Disabled 6 | . . . 2 2 . . . . . . . . . . . . 1 1 Max in Single Turn 1 | . . . 1 1 . . . . . . . . . . . . 1 1 Garrison Access 1 | . . . . . . . . . . . . . . . . . . 1 Machines Repaired . | . . . . . . . . . . . . . . . . . . . Machines Dismantled . | . . . . . . . . . . . . . . . . . . . Machines Sabotaged . | . . . . . . . . . . . . . . . . . . . Overloaded Fab Kills . | . . . . . . . . . . . . . . . . . . . Hacking | -11 -10 -9 -9 -8 -7 -7 -7 -7 -7 -6 -6 -5 -5 -5 -4 -4 -3 -2 --------- Run | Yrd Mat Mat Min Mat Fac Was Fac Low Low Fac DSF Fac Upp Upp Fac DSF Res Res Machines Accessed 19 | . 4 . 1 3 . . . 1 . 2 . . 1 1 1 . 4 1 Terminals 12 | . 3 . 1 3 . . . . . 1 . . . . 1 . 3 . Fabricators 1 | . . . . . . . . . . . . . . . . . 1 . Repair Stations . | . . . . . . . . . . . . . . . . . . . Recycling Units 1 | . 1 . . . . . . . . . . . . . . . . . Scanalyzers . | . . . . . . . . . . . . . . . . . . . Garrison Access 2 | . . . . . . . . . . 1 . . . . . . . 1 Total Hacks 44 | . 7 . 2 13 . . . 1 . 5 . . 1 1 1 . 12 1 Successful 14 | . 1 . 2 2 . . . 1 . 1 . . 1 1 1 . 3 1 Failed 30 | . 6 . . 11 . . . . . 4 . . . . . . 9 . Catastrophic 5 | . . . . 3 . . . . . 1 . . . . . . 1 . Database Lockouts . | . . . . . . . . . . . . . . . . . . . Manual 21 | . 2 . . 11 . . . . . . . . . . . . 8 . Terminals 35 | . 6 . 2 13 . . . . . 2 . . . . 1 . 11 . Fabricators 1 | . . . . . . . . . . . . . . . . . 1 . Repair Stations . | . . . . . . . . . . . . . . . . . . . Recycling Units 1 | . 1 . . . . . . . . . . . . . . . . . Scanalyzers . | . . . . . . . . . . . . . . . . . . . Garrison Access 4 | . . . . . . . . . . 3 . . . . . . . 1 Terminal Hacks 13 | . 1 . 2 2 . . . 1 . 1 . . 1 1 1 . 3 . Open Door 3 | . . . . . . . . 1 . . . . 1 1 . . . . Open DSF 2 | . . . . . . . . . . 1 . . . . 1 . . . Terminal Index 1 | . . . . . . . . . . . . . . . . . 1 . Alert Level 3 | . . . 1 2 . . . . . . . . . . . . . . Dispatch Records 1 | . 1 . . . . . . . . . . . . . . . . . Recall Investigation 1 | . . . . . . . . . . . . . . . . . 1 . Zone Layout 2 | . . . 1 . . . . . . . . . . . . . 1 . Fabricator Hacks . | . . . . . . . . . . . . . . . . . . . Repair Station Hacks . | . . . . . . . . . . . . . . . . . . . Recycling Unit Hacks . | . . . . . . . . . . . . . . . . . . . Scanalyzer . | . . . . . . . . . . . . . . . . . . . Garrison Access Hacks 1 | . . . . . . . . . . . . . . . . . . 1 Seal Access 1 | . . . . . . . . . . . . . . . . . . 1 Unauthorized Hacks . | . . . . . . . . . . . . . . . . . . . Terminals . | . . . . . . . . . . . . . . . . . . . Fabricators . | . . . . . . . . . . . . . . . . . . . Repair Stations . | . . . . . . . . . . . . . . . . . . . Recycling Units . | . . . . . . . . . . . . . . . . . . . Scanalyzers . | . . . . . . . . . . . . . . . . . . . Garrison Access . | . . . . . . . . . . . . . . . . . . . Data Cores Recovered . | . . . . . . . . . . . . . . . . . . . Used . | . . . . . . . . . . . . . . . . . . . Hacking Detections 14 | . 4 . . 3 . . . . . 2 . . . . 1 . 4 . Full Trace Events 7 | . 1 . . 3 . . . . . 1 . . . . . . 2 . Feedback Events 2 | . . . . 1 . . . . . . . . . . . . 1 . Corruption 2 | . . . . 1 . . . . . . . . . . . . 1 . Feedback Blocked . | . . . . . . . . . . . . . . . . . . . Robot Schematics Acquired . | . . . . . . . . . . . . . . . . . . . Robots Built . | . . . . . . . . . . . . . . . . . . . Authchips . | . . . . . . . . . . . . . . . . . . . Time . | . . . . . . . . . . . . . . . . . . . Total Robot Build Rating . | . . . . . . . . . . . . . . . . . . . Part Schematics Acquired . | . . . . . . . . . . . . . . . . . . . Parts Built . | . . . . . . . . . . . . . . . . . . . Authchips . | . . . . . . . . . . . . . . . . . . . Time . | . . . . . . . . . . . . . . . . . . . Total Part Build Rating . | . . . . . . . . . . . . . . . . . . . Parts Repaired . | . . . . . . . . . . . . . . . . . . . Time . | . . . . . . . . . . . . . . . . . . . Parts Recycled . | . . . . . . . . . . . . . . . . . . . Recycled Matter . | . . . . . . . . . . . . . . . . . . . Retrieved Matter . | . . . . . . . . . . . . . . . . . . . Retrieved Components . | . . . . . . . . . . . . . . . . . . . Parts Scanalyzed . | . . . . . . . . . . . . . . . . . . . Part Schematics Acquired . | . . . . . . . . . . . . . . . . . . . Parts Damaged . | . . . . . . . . . . . . . . . . . . . Bothacking | -11 -10 -9 -9 -8 -7 -7 -7 -7 -7 -6 -6 -5 -5 -5 -4 -4 -3 -2 ------------ Run | Yrd Mat Mat Min Mat Fac Was Fac Low Low Fac DSF Fac Upp Upp Fac DSF Res Res Used RIF Installer . | . . . . . . . . . . . . . . . . . . . Robots Hacked . | . . . . . . . . . . . . . . . . . . . Non-combat . | . . . . . . . . . . . . . . . . . . . Combat . | . . . . . . . . . . . . . . . . . . . Robot Hacks Applied . | . . . . . . . . . . . . . . . . . . . Relay Couplers Released 2 | . . . . . . . . . . . . . . . . . . 2 Machine Destruction 2 | . . . . . . . . . . . . . . . . . . 2 Fabnet Peak Effective % . | . . . . . . . . . . . . . . . . . . . Robots Rewired . | . . . . . . . . . . . . . . . . . . . Allies Hacked . | . . . . . . . . . . . . . . . . . . . Hacks Repelled . | . . . . . . . . . . . . . . . . . . . Allies | -11 -10 -9 -9 -8 -7 -7 -7 -7 -7 -6 -6 -5 -5 -5 -4 -4 -3 -2 -------- Run | Yrd Mat Mat Min Mat Fac Was Fac Low Low Fac DSF Fac Upp Upp Fac DSF Res Res Total Allies 1 | . . . . . . . . . . . . . . . . . . 1 Largest Group 1 | . . . . . . . . . . . . . . . . . . 1 Highest-Rated Group 183 | . . . . . . . . . . . . . . . . . . 183 Highest-Rated Ally 183 | . . . . . . . . . . . . . . . . . . 183 Total Orders . | . . . . . . . . . . . . . . . . . . . Ally Attacks 1 | . . . . . . . . . . . . . . . . . . 1 Total Damage 91 | . . . . . . . . . . . . . . . . . . 91 Kills 1 | . . . . . . . . . . . . . . . . . . 1 Allies Corrupted . | . . . . . . . . . . . . . . . . . . . Allies Melted 1 | . . . . . . . . . . . . . 1 . . . . . Intel | -11 -10 -9 -9 -8 -7 -7 -7 -7 -7 -6 -6 -5 -5 -5 -4 -4 -3 -2 ------- Run | Yrd Mat Mat Min Mat Fac Was Fac Low Low Fac DSF Fac Upp Upp Fac DSF Res Res Active Infowar (turns) 338 | . 102 . . . . . . . . . . . . . . . 38 198 Sensors 226 | . . . . . . . . . . . . . . . . . 38 188 Terrain 102 | . 102 . . . . . . . . . . . . . . . . . ECM 10 | . . . . . . . . . . . . . . . . . . 10 Robot Analysis Total . | . . . . . . . . . . . . . . . . . . . Derelict Logs Recovered 4 | . . . 1 . . . . 1 . . . . 2 . . . . . Drone Launches . | . . . . . . . . . . . . . . . . . . . Drone Recoveries . | . . . . . . . . . . . . . . . . . . . Exploration | -11 -10 -9 -9 -8 -7 -7 -7 -7 -7 -6 -6 -5 -5 -5 -4 -4 -3 -2 ------------- Run | Yrd Mat Mat Min Mat Fac Was Fac Low Low Fac DSF Fac Upp Upp Fac DSF Res Res Turns Passed 5210 | . 261 94 637 1148 182 92 85 513 42 115 137 147 498 22 2 69 645 521 Spaces Moved 3423 | 1 162 69 349 319 90 64 44 297 66 155 128 151 542 35 3 95 565 288 Core 606 | . . . . . . 21 27 . 64 108 25 19 147 35 3 69 51 37 Treads 694 | . . . . 200 . . 17 297 2 . 2 . . . . . 86 90 Legs 337 | 1 21 . . . 90 43 . . . . . . . . . . 143 39 Wheels 1243 | . 141 69 349 119 . . . . . . . 132 341 . . 5 . 87 Hover 465 | . . . . . . . . . . 47 77 . . . . 21 285 35 Flight 78 | . . . . . . . . . . . 24 . 54 . . . . . Fastest Speed 32 | 120 120 130 130 145 190 50 160 160 50 50 32 50 32 50 50 50 50 50 Average Speed 127 | 120 128 130 143 289 190 140 184 171 59 72 56 88 87 50 50 54 92 124 Slowest Speed 560 | 120 130 130 145 560 190 200 200 240 250 100 200 150 200 50 50 90 160 240 Overloaded Moves . | . . . . . . . . . . . . . . . . . . . Propulsion Burnouts . | . . . . . . . . . . . . . . . . . . . Robots Hopped . | . . . . . . . . . . . . . . . . . . . Potential Cave-ins 4 | . . . . . . . . . . . . . . . . . 4 . Cave-ins Triggered . | . . . . . . . . . . . . . . . . . . . Exploration Rate (%) 30 | 1 30 9 72 26 3 62 2 55 13 4 90 5 70 8 . 85 13 7 Regions Visited 18 Branch Regions 5 Pre-discovered Areas . | . . . . . . . . . . . . . . . . . . . Known Exits Taken 3 | . . . . . . . . . . 1 . . . . 1 . 1 . Unknown Exits Taken 11 | 1 1 1 1 1 . . 1 1 1 . . 1 1 1 . . . . Scrap Searched 7 | . . . 3 . . . . . 2 . . . 2 . . . . . Spaces Dug 4 | . . . . . . . . . . . . . . . . . 4 . Terrain Destroyed 342 | . . . . 67 . . . . . . 4 . 19 . . . 69 183 Melee 4 | . . . . . . . . . . . . . . . . . 4 . Projectile 15 | . . . . . . . . . . . 4 . 2 . . . . 9 AOE 323 | . . . . 67 . . . . . . . . 17 . . . 65 174 Terrain Rammed . | . . . . . . . . . . . . . . . . . . . Walls Destroyed . | . . . . . . . . . . . . . . . . . . . Machines Disabled . | . . . . . . . . . . . . . . . . . . . Actions | -11 -10 -9 -9 -8 -7 -7 -7 -7 -7 -6 -6 -5 -5 -5 -4 -4 -3 -2 --------- Run | Yrd Mat Mat Min Mat Fac Was Fac Low Low Fac DSF Fac Upp Upp Fac DSF Res Res Total 4004 | . 188 72 448 462 102 66 47 301 68 156 183 163 559 40 2 108 641 398 Wait 165 | . 1 . 73 36 . . . . . . 21 . . . . . 17 17 Move 3406 | . 161 68 348 318 90 63 43 296 65 154 127 150 541 34 2 94 564 288 Hop . | . . . . . . . . . . . . . . . . . . . Pick Up 40 | . 4 1 7 16 1 . . 2 . . . 1 1 3 . . 2 2 Fast Attach 74 | . 3 2 1 8 3 2 2 1 . 2 5 3 4 . . 8 17 13 Attach 18 | . . 1 . 5 2 . 1 . 1 . . 1 2 . . . 1 4 Detach 12 | . 1 . 1 3 1 . . 1 1 . . . 2 . . . . 2 Swap 24 | . 2 . 1 8 4 . . . . . 1 . . . . . 2 6 Drop 30 | . . . . 11 1 1 1 1 . . 1 . 3 3 . 1 3 4 Fire 129 | . 16 . 14 53 . . . . . . 7 . 6 . . . 7 26 Melee 56 | . . . . . . . . . . . . . . . . . 28 28 Ram 22 | . . . 3 4 . . . . 1 . 2 . . . . 4 . 8 Kick . | . . . . . . . . . . . . . . . . . . . Crush . | . . . . . . . . . . . . . . . . . . . Escape Stasis 28 | . . . . . . . . . . . 19 8 . . . 1 . . Rewire . | . . . . . . . . . . . . . . . . . . . Trap . | . . . . . . . . . . . . . . . . . . . Miscellaneous . | . . . . . . . . . . . . . . . . . . . Route ------- -11/Scrapyard -10/Materials -9/Materials -9/Mines -8/Materials -7/Factory -7/Waste -7/Factory -7/Lower Caves -7/Lower Caves -6/Factory -6/DSF -5/Factory -5/Upper Caves -5/Upper Caves -4/Factory -4/DSF -3/Research -2/Research (discovered 1 exit: *Tes) History --------- Turn | Location | Event 1 | -11/Scrapyard | Discovered new exit (range 0) 1 | -11/Scrapyard | Entered Materials 221 | -10/Materials | Discovered new exit (range 15) 262 | -10/Materials | Entered another Materials area 262 | -9/Materials | Evolved 2 slots: Weapon x2 313 | -9/Materials | Discovered new exit (range 16) 356 | -9/Materials | Entered Mines 573 | -9/Mines | Build established: Gunner 801 | -9/Mines | Learned Materials terminal intel 929 | -9/Mines | Received a Rocket Launcher from a helpful Derelict 942 | -9/Mines | Discovered new exit (range 15) 993 | -9/Mines | Entered Materials 993 | -8/Materials | Evolved 2 slots: Power x1, Utility x1 994 | -8/Materials | Loaded intel: 12 terminal locations 1274 | -8/Materials | Destroyed 8 combat bots 1278 | -8/Materials | Lost 5 parts (1p2u2w) 2010 | -8/Materials | Discovered new exit (range 16) 2141 | -8/Materials | Entered Factory 2141 | -7/Factory | Evolved 2 slots: Propulsion x2 2323 | -7/Factory | Sucked down chute 2323 | -7/Factory | Entered Waste 2364 | -7/Waste | Spotted C-40 Crusher 2378 | -7/Waste | Spotted C-40 Crusher 2383 | -7/Waste | Spotted C-40 Crusher 2384 | -7/Waste | Spotted C-40 Crusher 2384 | -7/Waste | Spotted C-40 Crusher 2387 | -7/Waste | Spotted C-40 Crusher 2391 | -7/Waste | Crushed by Compactor (1 part destroyed, 2 dropped) 2394 | -7/Waste | Crushed by Compactor (1 part destroyed, 1 dropped) 2395 | -7/Waste | Crushed by Compactor (1 part destroyed, 1 dropped) 2398 | -7/Waste | Crushed by Compactor (1 part destroyed, 2 dropped) 2401 | -7/Waste | Crushed by Compactor (1 part destroyed, 1 dropped) 2401 | -7/Waste | Discovered new exit (range 16) 2415 | -7/Waste | Entered Factory 2432 | -7/Factory | Lost 6 parts (2p3n1w) 2490 | -7/Factory | Discovered new exit (range 6) 2500 | -7/Factory | Entered Lower Caves 2689 | -7/Lower Caves | Build established: Mutant 2856 | -7/Lower Caves | Learned Factory garrison access intel 3000 | -7/Lower Caves | Discovered new exit (range 9) 3013 | -7/Lower Caves | Entered another Lower Caves area 3046 | -7/Lower Caves | Discovered new exit (range 15) 3055 | -7/Lower Caves | Entered Factory 3055 | -6/Factory | Evolved 2 slots: Utility x2 3056 | -6/Factory | Loaded intel: 4 garrison access locations 3170 | -6/Factory | Identified exit to DSF 3170 | -6/Factory | Entered DSF 3214 | -6/DSF | Additional patrols routed to DSF 3280 | -6/DSF | Lost 3 parts (2u1w) 3300 | -6/DSF | Core integrity fell below 50% 3300 | -6/DSF | Discovered new exit (range 15) 3307 | -6/DSF | Entered Factory 3307 | -5/Factory | Evolved 2 slots: Utility x2 3441 | -5/Factory | Discovered new exit (range 12) 3454 | -5/Factory | Entered Upper Caves 3897 | -5/Upper Caves | Spotted B-75 Beast 3899 | -5/Upper Caves | Attracted the attention of an 0b10 checkpoint 3922 | -5/Upper Caves | Learned Factory security intel 3933 | -5/Upper Caves | Discovered new exit (range 15) 3941 | -5/Upper Caves | Learned Factory emergency access door positions 3948 | -5/Upper Caves | Lost 5 parts (2n2u1w) 3952 | -5/Upper Caves | Entered another Upper Caves area 3952 | -5/Upper Caves | Discovered new exit (range 13) 3974 | -5/Upper Caves | Entered Factory 3974 | -4/Factory | Evolved 2 slots: Utility x2 3976 | -4/Factory | Identified exit to DSF 3976 | -4/Factory | Entered DSF 3994 | -4/DSF | Additional patrols routed to DSF 4023 | -4/DSF | Discovered new exit (range 14) 4028 | -4/DSF | Core integrity fell below 50% 4045 | -4/DSF | Entered Research 4045 | -3/Research | Evolved 2 slots: Propulsion x2 4412 | -3/Research | Build established: Hacker-Mutant 4578 | -3/Research | Found Prototype Launcher 4609 | -3/Research | Identified Adv. Micro-nuke Launcher 4646 | -3/Research | Discovered new exit (range 12) 4653 | -3/Research | Destroyed 7 combat bots 4658 | -3/Research | Lost 3 parts (1p1n1u) 4688 | -3/Research | Identified exit to Research 4690 | -3/Research | Entered another Research area 4690 | -2/Research | Evolved 2 slots: Propulsion x2 4726 | -2/Research | Discovered new exit (range 9) 4738 | -2/Research | Identified exit to Testing 4933 | -2/Research | Lost 7 parts (2n3u2w) 5118 | -2/Research | Spotted B-90 Cyclops 5148 | -2/Research | Core integrity fell below 50% 5169 | -2/Research | Lost 10 parts (2p2n3u3w) 5197 | -2/Research | Spotted B-90 Cyclops 5199 | -2/Research | Core integrity fell below 20% 5211 | -2/Research | Destroyed by B-90 Cyclops with Nova Cannon Last Messages --------------- 05190_ Acquired Adv. ECM Suite. 05191_ Slug penetrates Door. 05191_ Penetrated by Slug. 05192_ Antigrav Array destroyed. 05194_ Penetrated by Slug. 05197_ Adv. ECM Suite destroyed. 05197_ Penetrated by Slug. 05200_ Slammed into K-01 Serf. 05200_ Destabilizing: Core damaged (-14). 05201_ Slammed into U-05 Engineer. 05202_ ALERT: Construction progress impeded, dispatching reinforcements to local area. 05204_ Slammed into P-80 Master. 05205_ System corrupted: Mic. Antimatter Reactor fused. 05209_ P-80 Master resets B-90 Cyclops, system corruption cleaned. 05209_ Adv. Terrain Scan Processor destroyed. 05209_ System Shield destroyed. 05211_ Mic. Antimatter Reactor destroyed. Map ----- +----------------------------------------------------+ | ?????????????????????????????????????????????????? | | ?????????????????????????????????????????????????? | | ?????????????????????????????????????????????????? | | ?????????????????????????????????????????????????? | | ?????????????????????????????????????????????????? | | ?????????????????????????????????????????????????? | | ?????????????????????????????????????????????????? | | ?????????????????????????????????????????????????? | | ?????????????????????????????????????????????????? | | ?????????????????????????????????????????????????? | | ?????????????????????????????????????????????????? | | ?????????????????????????????????????????????????? | | ?????????????????????????????????????????????????? | | ?????????????????????????????##??????????????????? | | ??????????????????###+####### ??????????????????? | | ??????????????????# #??????????????????? | | ??????????????????# u #??????????????????? | | ??????????????????# ###????????????????? | | ??????????????????# t ?????????????????? | | ??????????????????# ??????????????????? | | ??????????????????# "" ###????????????????? | | ??????????????????# Y" k #????????????????? | | ??????????????????# "" #????????????????? | | ??????????????????# BB #????????????????? | | ??????????????????# BB #????????????????? | | ??????????????????# @ pp #????????????????? | | ??????????????????###""" """# ###????????????????? | | ????????????????????#"""T"""# #??????????????????? | | ????????????????????######### #??????????????????? | | ????????????????????????????# #??????????????????? | | ?????????????##########?????# #??????????????????? | | ?????????????#= #######/###????????????????? | | ?????????????# # #????????????????? | | ?????????????# # #????????????????? | | ?????????????# #""" #????????????????? | | ?????????????# "" #""" #????????????????? | | ?????????????# """ #""" ] #????????????????? | | ?????????????# """ # #????????????????? | | ?????????????# # +????????????????? | | ?????????????# # #????????????????? | | ?????????#########+##"##""#""##+#????????????????? | | ?????????# ! #?????????????? | | ?????????# ! #???????????? | | ?????????# =%= #???????????? | | ?????????# """"""" ^ "" ###???????????? | | ?????????# """"""" """??????????????? | | ?????????# """"""" T"??????????????? | | ?????????# """#?????????????? | | #+#+###### " #?????????????? | | #?????????????? | +----------------------------------------------------+ Best States ------------- Heat Dissipation 87 Energy Generation 39 Energy Capacity 1000 Matter Stores 300 Matter Capacity 300 Sight Range 16 Robot Scan Range 16 Terrain Scan Range 14 Terrain Scan Density 210 ECM Strength 2 Additional Mass Support 9 Armor Coverage 225 Resistance: TH 20 Evasion (%) 70 Targeting Accuracy 8 Recoil Reduction 2 Offensive Hacking 10 Defensive Hacking 10 Item Schematics ----------------- None Robot Schematics ------------------ None Fabricated ------------ Nothing Repaired ---------- Nothing Alien Tech Used ----------------- None Achievements -------------- None Challenges ------------ None Game ------ Seed HeatSmallAutobeam Manual? 0 Play Time 00:51:57 Cumulative 114.9 hours Start 2025.08.30 @ 18:35:05 End 2025.08.30 @ 19:24:48 Sessions 1 Manual Loads 0 Difficulty Rogue Special Mode None Game No. 148 Rogue 61 Adventurer 59 Explorer 28 Win Type - Total 15 Types 13/0/2/0/0/0/0/0/0/0 Lore% 36 Gallery% 59 Achievement% 49 Wizard Run 0 Options --------- Layout 2 ASCII 0 Keyboard 1 Movement Arrows Keybinds 1 Fullscreen 2 Font 24/Smallcaps Map View 50x49 Zoom Use 0% Tactical HUD 1 Map Filters NONE Filters NONE Steam 1 RUN: ad4c9587-63b5-4ffa-9c7b-808974ba1fd4